[Event "Titled Tuesday Blitz August 24 2021"]
[White "Grachev, Boris"]
[Black "Purtseladze, Maka"]
[WhiteFideId "4129199"]
[BlackFideId "13602659"]
[WhiteElo "2580"]
[BlackElo "2178"]
[Result "1-0"]
[Round "09"]
[TimeControl "180+1"]
[Date "2021.08.24"]
[WhiteClock "0:01:59"]
[BlackClock "0:01:13"]

1. d4 {[%clk 0:03:00]}  e6 {[%clk 0:02:55]} 2. Bf4 {[%clk 0:02:58]}  c5 {[%clk 0:02:53]} 3. e3 {[%clk 0:02:58]}  Qb6 {[%clk 0:02:46]} 4. Nc3 {[%clk 0:02:58]}  d5 {[%clk 0:02:26]} 5. Nb5 {[%clk 0:02:54]}  Na6 {[%clk 0:02:26]} 6. c3 {[%clk 0:02:53]}  Bd7 {[%clk 0:02:23]} 7. a4 {[%clk 0:02:53]}  Nf6 {[%clk 0:02:08]} 8. Nf3 {[%clk 0:02:42]}  Be7 {[%clk 0:02:07]} 9. Bd3 {[%clk 0:02:28]}  O-O {[%clk 0:02:05]} 10. Ne5 {[%clk 0:02:26]}  c4 {[%clk 0:02:04]} 11. Nxd7 {[%clk 0:02:21]}  Nxd7 {[%clk 0:02:05]} 12. Bc2 {[%clk 0:02:21]}  f5 {[%clk 0:02:02]} 13. g4 {[%clk 0:02:19]}  Rae8 {[%clk 0:01:44]} 14. gxf5 {[%clk 0:02:08]}  exf5 {[%clk 0:01:45]} 15. Rg1 {[%clk 0:02:06]}  g6 {[%clk 0:01:42]} 16. Qf3 {[%clk 0:02:01]}  Nf6 {[%clk 0:01:40]} 17. Bxf5 {[%clk 0:02:01]}  Nh5 {[%clk 0:01:13]} 18. Qxh5 {[%clk 0:01:59]} 1-0


[Site "https://www.chess.com"]

[Event "Titled Tuesday Blitz August 24 2021"]
[White "Gubajdullin, Alexei"]
[Black "Urazayev, Arystanbek"]
[WhiteFideId "4141202"]
[BlackFideId "13709810"]
[WhiteElo "2358"]
[BlackElo "2321"]
[Result "0-1"]
[Round "09"]
[TimeControl "180+1"]
[Date "2021.08.24"]
[WhiteClock "0:00:01"]
[BlackClock "0:00:18"]

1. d4 {[%clk 0:02:21]}  Nf6 {[%clk 0:02:56]} 2. Bf4 {[%clk 0:02:20]}  d5 {[%clk 0:02:56]} 3. e3 {[%clk 0:02:20]}  e6 {[%clk 0:02:56]} 4. Nd2 {[%clk 0:02:20]}  c5 {[%clk 0:02:57]} 5. c3 {[%clk 0:02:20]}  Nc6 {[%clk 0:02:58]} 6. Bd3 {[%clk 0:02:19]}  Qb6 {[%clk 0:02:57]} 7. Rb1 {[%clk 0:02:18]}  Bd7 {[%clk 0:02:56]} 8. Ngf3 {[%clk 0:02:18]}  Nh5 {[%clk 0:02:57]} 9. Be5 {[%clk 0:02:17]}  f6 {[%clk 0:02:57]} 10. Bg3 {[%clk 0:02:17]}  g6 {[%clk 0:02:57]} 11. O-O {[%clk 0:02:16]}  cxd4 {[%clk 0:02:57]} 12. exd4 {[%clk 0:02:16]}  Bh6 {[%clk 0:02:58]} 13. Re1 {[%clk 0:02:16]}  Nxg3 {[%clk 0:02:58]} 14. hxg3 {[%clk 0:02:15]}  O-O {[%clk 0:02:58]} 15. Nb3 {[%clk 0:02:15]}  Rae8 {[%clk 0:02:55]} 16. Nc5 {[%clk 0:02:14]}  Bc8 {[%clk 0:02:56]} 17. b4 {[%clk 0:02:11]}  Kg7 {[%clk 0:02:55]} 18. Bc2 {[%clk 0:02:10]}  Qc7 {[%clk 0:02:47]} 19. Qd3 {[%clk 0:02:04]}  b6 {[%clk 0:02:44]} 20. Nb3 {[%clk 0:02:00]}  e5 {[%clk 0:02:42]} 21. dxe5 {[%clk 0:01:56]}  fxe5 {[%clk 0:02:35]} 22. Qxd5 {[%clk 0:01:55]}  Be6 {[%clk 0:02:33]} 23. Qe4 {[%clk 0:01:54]}  Bf5 {[%clk 0:02:31]} 24. Qe2 {[%clk 0:01:54]}  Bxc2 {[%clk 0:02:29]} 25. Qxc2 {[%clk 0:01:53]}  Nxb4 {[%clk 0:02:29]} 26. Qe4 {[%clk 0:01:44]}  Nc6 {[%clk 0:02:13]} 27. Rbd1 {[%clk 0:01:42]}  Rf7 {[%clk 0:02:04]} 28. Rd5 {[%clk 0:01:40]}  Kg8 {[%clk 0:01:51]} 29. Red1 {[%clk 0:01:39]}  Rfe7 {[%clk 0:01:47]} 30. g4 {[%clk 0:01:37]}  Nd8 {[%clk 0:01:40]} 31. g5 {[%clk 0:01:36]}  Bg7 {[%clk 0:01:41]} 32. R1d3 {[%clk 0:01:31]}  Nf7 {[%clk 0:01:41]} 33. Nbd2 {[%clk 0:01:27]}  Qc8 {[%clk 0:01:41]} 34. g3 {[%clk 0:01:17]}  Qf5 {[%clk 0:01:41]} 35. Kg2 {[%clk 0:01:17]}  Rf8 {[%clk 0:01:33]} 36. c4 {[%clk 0:01:11]}  Nxg5 {[%clk 0:01:30]} 37. Nxg5 {[%clk 0:01:11]}  Qxg5 {[%clk 0:01:26]} 38. Rf3 {[%clk 0:01:08]}  Ref7 {[%clk 0:01:11]} 39. Rxf7 {[%clk 0:01:05]}  Rxf7 {[%clk 0:01:10]} 40. Nf3 {[%clk 0:01:02]}  Qf6 {[%clk 0:01:11]} 41. c5 {[%clk 0:00:57]}  bxc5 {[%clk 0:01:06]} 42. Rxc5 {[%clk 0:00:58]}  h6 {[%clk 0:01:01]} 43. Qc2 {[%clk 0:00:32]}  Qf5 {[%clk 0:00:46]} 44. Qxf5 {[%clk 0:00:26]}  Rxf5 {[%clk 0:00:46]} 45. Rc8+ {[%clk 0:00:22]}  Rf8 {[%clk 0:00:41]} 46. Rc6 {[%clk 0:00:18]}  Rf6 {[%clk 0:00:33]} 47. Rc8+ {[%clk 0:00:16]}  Kh7 {[%clk 0:00:31]} 48. Nxe5 {[%clk 0:00:15]}  Ra6 {[%clk 0:00:31]} 49. Nc6 {[%clk 0:00:13]}  Rxa2 {[%clk 0:00:31]} 50. Ra8 {[%clk 0:00:13]}  a6 {[%clk 0:00:25]} 51. g4 {[%clk 0:00:13]}  Bc3 {[%clk 0:00:21]} 52. Kf1 {[%clk 0:00:09]}  a5 {[%clk 0:00:21]} 53. Ra7+ {[%clk 0:00:08]}  Kh8 {[%clk 0:00:21]} 54. Ne7 {[%clk 0:00:07]}  a4 {[%clk 0:00:19]} 55. Nxg6+ {[%clk 0:00:07]}  Kg8 {[%clk 0:00:19]} 56. Ne7+ {[%clk 0:00:07]}  Kf8 {[%clk 0:00:19]} 57. Ng6+ {[%clk 0:00:06]}  Ke8 {[%clk 0:00:18]} 58. Nh4 {[%clk 0:00:03]}  Rxf2+ {[%clk 0:00:18]} 59. Kxf2 {[%clk 0:00:02]}  Bd4+ {[%clk 0:00:19]} 60. Ke2 {[%clk 0:00:02]}  Bxa7 {[%clk 0:00:20]} 61. Kd3 {[%clk 0:00:02]}  Kf7 {[%clk 0:00:20]} 62. Kc4 {[%clk 0:00:02]}  Bc5 {[%clk 0:00:19]} 63. Nf5 {[%clk 0:00:01]}  Kg6 {[%clk 0:00:17]} 64. Kc3 {[%clk 0:00:01]}  a3 {[%clk 0:00:18]} 65. Kb3 {[%clk 0:00:01]}  Kg5 {[%clk 0:00:18]} 0-1


[Site "https://www.chess.com"]

[Event "Titled Tuesday Blitz August 24 2021"]
[White "Jakubowski, Krzysztof"]
[Black "Moon_stone123"]
[WhiteFideId "1112848"]
[WhiteElo "2414"]
[BlackElo "2425"]
[Result "1/2-1/2"]
[Round "09"]
[TimeControl "180+1"]
[Date "2021.08.24"]
[WhiteClock "0:00:27"]
[BlackClock "0:00:20"]

1. d4 {[%clk 0:03:00]}  d5 {[%clk 0:02:59]} 2. c4 {[%clk 0:02:59]}  dxc4 {[%clk 0:03:00]} 3. e4 {[%clk 0:02:59]}  Nf6 {[%clk 0:02:56]} 4. e5 {[%clk 0:02:57]}  Nd5 {[%clk 0:02:56]} 5. Bxc4 {[%clk 0:02:56]}  Nb6 {[%clk 0:02:57]} 6. Bd3 {[%clk 0:02:53]}  Nc6 {[%clk 0:02:57]} 7. Be3 {[%clk 0:02:53]}  e6 {[%clk 0:02:52]} 8. a3 {[%clk 0:02:50]}  Be7 {[%clk 0:02:44]} 9. Nc3 {[%clk 0:02:46]}  Nd5 {[%clk 0:02:42]} 10. Nge2 {[%clk 0:02:31]}  Bg5 {[%clk 0:02:39]} 11. Nxd5 {[%clk 0:02:24]}  exd5 {[%clk 0:02:40]} 12. f4 {[%clk 0:02:22]}  Bh4+ {[%clk 0:02:39]} 13. g3 {[%clk 0:02:20]}  Be7 {[%clk 0:02:39]} 14. O-O {[%clk 0:01:59]}  f5 {[%clk 0:02:37]} 15. b4 {[%clk 0:01:55]}  O-O {[%clk 0:02:35]} 16. Qc2 {[%clk 0:01:53]}  Be6 {[%clk 0:02:32]} 17. Rfc1 {[%clk 0:01:50]}  Rc8 {[%clk 0:02:19]} 18. Nc3 {[%clk 0:01:48]}  a6 {[%clk 0:02:06]} 19. Na4 {[%clk 0:01:47]}  Nb8 {[%clk 0:02:00]} 20. Nc5 {[%clk 0:01:46]}  Bxc5 {[%clk 0:02:00]} 21. bxc5 {[%clk 0:01:43]}  c6 {[%clk 0:01:59]} 22. Rcb1 {[%clk 0:01:41]}  Rc7 {[%clk 0:01:57]} 23. Rb2 {[%clk 0:01:38]}  Bc8 {[%clk 0:01:57]} 24. Kh1 {[%clk 0:01:28]}  h6 {[%clk 0:01:47]} 25. Rg1 {[%clk 0:01:29]}  Rcf7 {[%clk 0:01:40]} 26. Qc1 {[%clk 0:01:24]}  Re8 {[%clk 0:01:35]} 27. Rbg2 {[%clk 0:01:23]}  Nd7 {[%clk 0:01:28]} 28. g4 {[%clk 0:01:21]}  fxg4 {[%clk 0:01:26]} 29. f5 {[%clk 0:01:15]}  h5 {[%clk 0:01:01]} 30. e6 {[%clk 0:01:11]}  Rff8 {[%clk 0:01:02]} 31. exd7 {[%clk 0:01:06]}  Bxd7 {[%clk 0:01:02]} 32. Bg5 {[%clk 0:00:58]}  Qc8 {[%clk 0:01:02]} 33. f6 {[%clk 0:00:57]}  gxf6 {[%clk 0:00:57]} 34. Bh6 {[%clk 0:00:56]}  Rf7 {[%clk 0:00:54]} 35. Bg6 {[%clk 0:00:55]}  Bf5 {[%clk 0:00:52]} 36. Bxf7+ {[%clk 0:00:54]}  Kxf7 {[%clk 0:00:53]} 37. Re1 {[%clk 0:00:53]}  Be4 {[%clk 0:00:52]} 38. Kg1 {[%clk 0:00:46]}  Bxg2 {[%clk 0:00:50]} 39. Kxg2 {[%clk 0:00:47]}  Rxe1 {[%clk 0:00:50]} 40. Qxe1 {[%clk 0:00:46]}  Qf5 {[%clk 0:00:49]} 41. Qe3 {[%clk 0:00:45]}  h4 {[%clk 0:00:44]} 42. Bf4 {[%clk 0:00:44]}  Qc2+ {[%clk 0:00:40]} 43. Qd2 {[%clk 0:00:44]}  Qe4+ {[%clk 0:00:41]} 44. Kg1 {[%clk 0:00:42]}  f5 {[%clk 0:00:36]} 45. Be5 {[%clk 0:00:40]}  h3 {[%clk 0:00:34]} 46. Bg3 {[%clk 0:00:35]}  Kg6 {[%clk 0:00:34]} 47. Kf2 {[%clk 0:00:33]}  Qg2+ {[%clk 0:00:30]} 48. Ke1 {[%clk 0:00:32]}  Qh1+ {[%clk 0:00:29]} 49. Ke2 {[%clk 0:00:33]}  Qf3+ {[%clk 0:00:25]} 50. Ke1 {[%clk 0:00:32]}  Qh1+ {[%clk 0:00:24]} 51. Kf2 {[%clk 0:00:31]}  Qg2+ {[%clk 0:00:20]} 52. Ke1 {[%clk 0:00:27]}  Qh1+ {[%clk 0:00:20]} 1/2-1/2


[Site "https://www.chess.com"]

[Event "Titled Tuesday Blitz August 24 2021"]
[White "Kavyev, Ruslan"]
[Black "Samsonkin, Artiom"]
[WhiteFideId "34110981"]
[BlackFideId "13503111"]
[WhiteElo "2172"]
[BlackElo "2513"]
[Result "0-1"]
[Round "09"]
[TimeControl "180+1"]
[Date "2021.08.24"]
[WhiteClock "0:00:35"]
[BlackClock "0:00:39"]

1. d4 {[%clk 0:03:00]}  Nf6 {[%clk 0:02:59]} 2. c4 {[%clk 0:02:59]}  e6 {[%clk 0:03:00]} 3. g3 {[%clk 0:02:57]}  Bb4+ {[%clk 0:03:00]} 4. Bd2 {[%clk 0:02:57]}  Qe7 {[%clk 0:02:59]} 5. Nf3 {[%clk 0:02:57]}  Nc6 {[%clk 0:02:58]} 6. Bg2 {[%clk 0:02:55]}  Bxd2+ {[%clk 0:02:56]} 7. Nbxd2 {[%clk 0:02:56]}  O-O {[%clk 0:02:55]} 8. O-O {[%clk 0:02:54]}  d6 {[%clk 0:02:56]} 9. e4 {[%clk 0:02:53]}  e5 {[%clk 0:02:57]} 10. d5 {[%clk 0:02:54]}  Nb8 {[%clk 0:02:57]} 11. b4 {[%clk 0:02:54]}  a5 {[%clk 0:02:53]} 12. a3 {[%clk 0:02:55]}  Na6 {[%clk 0:02:38]} 13. Qb3 {[%clk 0:02:48]}  Bg4 {[%clk 0:02:32]} 14. h3 {[%clk 0:02:42]}  Bxf3 {[%clk 0:02:32]} 15. Bxf3 {[%clk 0:02:43]}  c6 {[%clk 0:02:24]} 16. Rae1 {[%clk 0:02:33]}  axb4 {[%clk 0:02:21]} 17. axb4 {[%clk 0:02:33]}  c5 {[%clk 0:02:22]} 18. bxc5 {[%clk 0:02:27]}  Nxc5 {[%clk 0:02:22]} 19. Qc2 {[%clk 0:02:23]}  Ra3 {[%clk 0:02:14]} 20. Bg2 {[%clk 0:02:23]}  Rfa8 {[%clk 0:02:13]} 21. Rb1 {[%clk 0:02:17]}  h5 {[%clk 0:02:03]} 22. Kh2 {[%clk 0:02:06]}  h4 {[%clk 0:01:59]} 23. g4 {[%clk 0:02:03]}  Nfd7 {[%clk 0:01:50]} 24. Rfe1 {[%clk 0:01:13]}  Ra2 {[%clk 0:01:41]} 25. Rb2 {[%clk 0:01:07]}  Rxb2 {[%clk 0:01:41]} 26. Qxb2 {[%clk 0:01:07]}  Nd3 {[%clk 0:01:41]} 27. Qb1 {[%clk 0:01:00]}  Nxe1 {[%clk 0:01:41]} 28. Qxe1 {[%clk 0:01:01]}  Qg5 {[%clk 0:01:38]} 29. Nf1 {[%clk 0:00:57]}  Qf4+ {[%clk 0:01:38]} 30. Kg1 {[%clk 0:00:58]}  Ra2 {[%clk 0:01:37]} 31. Ne3 {[%clk 0:00:58]}  g6 {[%clk 0:01:27]} 32. c5 {[%clk 0:00:48]}  Nxc5 {[%clk 0:01:27]} 33. Nc4 {[%clk 0:00:49]}  Nd3 {[%clk 0:01:26]} 34. Qe3 {[%clk 0:00:48]}  Qxe3 {[%clk 0:01:00]} 35. fxe3 {[%clk 0:00:49]}  Ne1 {[%clk 0:00:56]} 36. Bh1 {[%clk 0:00:47]}  Ra6 {[%clk 0:00:50]} 37. Kf2 {[%clk 0:00:45]}  Nd3+ {[%clk 0:00:44]} 38. Ke2 {[%clk 0:00:42]}  Nc5 {[%clk 0:00:45]} 39. Kd2 {[%clk 0:00:37]}  b5 {[%clk 0:00:45]} 40. Nb2 {[%clk 0:00:36]}  b4 {[%clk 0:00:45]} 41. Kc2 {[%clk 0:00:37]}  Ra1 {[%clk 0:00:42]} 42. Bf3 {[%clk 0:00:36]}  Rf1 {[%clk 0:00:41]} 43. Be2 {[%clk 0:00:36]}  Rh1 {[%clk 0:00:39]} 44. Nd3 {[%clk 0:00:35]}  Nxd3 {[%clk 0:00:39]} 45. Bxd3 {[%clk 0:00:35]}  Rxh3 {[%clk 0:00:39]} 0-1


[Site "https://www.chess.com"]

[Event "Titled Tuesday Blitz August 24 2021"]
[White "Korchmar, Vasiliy"]
[Black "Nefedov, Sergey"]
[WhiteFideId "24131750"]
[BlackFideId "24113417"]
[WhiteElo "2370"]
[BlackElo "2380"]
[Result "1-0"]
[Round "09"]
[TimeControl "180+1"]
[Date "2021.08.24"]
[WhiteClock "0:00:37"]
[BlackClock "0:00:02"]

1. e4 {[%clk 0:03:00]}  d5 {[%clk 0:02:56]} 2. exd5 {[%clk 0:02:59]}  Qxd5 {[%clk 0:02:57]} 3. Nc3 {[%clk 0:02:58]}  Qd8 {[%clk 0:02:56]} 4. d4 {[%clk 0:02:58]}  Nf6 {[%clk 0:02:55]} 5. Bc4 {[%clk 0:02:56]}  c6 {[%clk 0:02:51]} 6. Nf3 {[%clk 0:02:56]}  Bf5 {[%clk 0:02:50]} 7. Ne5 {[%clk 0:02:49]}  e6 {[%clk 0:02:08]} 8. g4 {[%clk 0:02:49]}  Be4 {[%clk 0:02:07]} 9. f3 {[%clk 0:02:32]}  Bd5 {[%clk 0:02:04]} 10. Bd3 {[%clk 0:02:28]}  Nbd7 {[%clk 0:01:58]} 11. Bg5 {[%clk 0:02:24]}  Qb6 {[%clk 0:01:55]} 12. Nxd7 {[%clk 0:02:15]}  Nxd7 {[%clk 0:01:48]} 13. Nxd5 {[%clk 0:02:15]}  cxd5 {[%clk 0:01:47]} 14. c3 {[%clk 0:01:44]}  Qxb2 {[%clk 0:01:43]} 15. O-O {[%clk 0:01:30]}  Qxc3 {[%clk 0:01:42]} 16. Bb5 {[%clk 0:01:30]}  a6 {[%clk 0:01:39]} 17. Qa4 {[%clk 0:01:30]}  Qc7 {[%clk 0:01:28]} 18. Rac1 {[%clk 0:01:29]}  Qd6 {[%clk 0:01:23]} 19. Bh4 {[%clk 0:00:47]}  h5 {[%clk 0:00:34]} 20. Bg3 {[%clk 0:00:47]}  Qe7 {[%clk 0:00:29]} 21. Rc7 {[%clk 0:00:43]}  Rd8 {[%clk 0:00:07]} 22. Bxd7+ {[%clk 0:00:42]}  Rxd7 {[%clk 0:00:07]} 23. Rc8+ {[%clk 0:00:42]}  Qd8 {[%clk 0:00:08]} 24. Rxd8+ {[%clk 0:00:41]}  Kxd8 {[%clk 0:00:09]} 25. Rc1 {[%clk 0:00:39]}  hxg4 {[%clk 0:00:08]} 26. Qa5+ {[%clk 0:00:39]}  Ke7 {[%clk 0:00:07]} 27. fxg4 {[%clk 0:00:39]}  Kf6 {[%clk 0:00:07]} 28. Qa4 {[%clk 0:00:35]}  b5 {[%clk 0:00:05]} 29. Qc2 {[%clk 0:00:35]}  Bd6 {[%clk 0:00:04]} 30. Rf1+ {[%clk 0:00:36]}  Ke7 {[%clk 0:00:04]} 31. Bxd6+ {[%clk 0:00:36]}  Rxd6 {[%clk 0:00:04]} 32. Qc7+ {[%clk 0:00:36]}  Rd7 {[%clk 0:00:04]} 33. Rxf7+ {[%clk 0:00:37]}  Kxf7 {[%clk 0:00:05]} 34. Qxd7+ {[%clk 0:00:37]}  Kf6 {[%clk 0:00:06]} 35. Qd6 {[%clk 0:00:37]}  Rc8 {[%clk 0:00:05]} 36. Qxa6 {[%clk 0:00:37]}  Rc1+ {[%clk 0:00:06]} 37. Kg2 {[%clk 0:00:38]}  Rc2+ {[%clk 0:00:06]} 38. Kg3 {[%clk 0:00:38]}  Rc3+ {[%clk 0:00:07]} 39. Kf2 {[%clk 0:00:39]}  Rc2+ {[%clk 0:00:06]} 40. Ke3 {[%clk 0:00:39]}  Rxh2 {[%clk 0:00:06]} 41. a3 {[%clk 0:00:39]}  Rb2 {[%clk 0:00:06]} 42. Qa8 {[%clk 0:00:38]}  Rb3+ {[%clk 0:00:06]} 43. Kd2 {[%clk 0:00:38]}  Kg5 {[%clk 0:00:03]} 44. Qg8 {[%clk 0:00:37]}  Kxg4 {[%clk 0:00:03]} 45. Qxe6+ {[%clk 0:00:37]}  Kf4 {[%clk 0:00:03]} 46. Qd6+ {[%clk 0:00:36]}  Kg4 {[%clk 0:00:03]} 47. Qe6+ {[%clk 0:00:36]}  Kf4 {[%clk 0:00:02]} 48. Qe5+ {[%clk 0:00:36]}  Kg4 {[%clk 0:00:03]} 49. Qxd5 {[%clk 0:00:37]}  Rxa3 {[%clk 0:00:03]} 50. Qe6+ {[%clk 0:00:37]}  Kg3 {[%clk 0:00:01]} 51. Qd6+ {[%clk 0:00:37]}  Kf2 {[%clk 0:00:02]} 52. Qxa3 {[%clk 0:00:37]} 1-0


[Site "https://www.chess.com"]

[Event "Titled Tuesday Blitz August 24 2021"]
[White "Koridze, Lile"]
[Black "Bai, Adelard"]
[WhiteFideId "13612514"]
[BlackFideId "16301188"]
[WhiteElo "1978"]
[BlackElo "2120"]
[Result "0-1"]
[Round "09"]
[TimeControl "180+1"]
[Date "2021.08.24"]
[WhiteClock "0:02:00"]
[BlackClock "0:00:55"]

1. d4 {[%clk 0:03:00]}  d5 {[%clk 0:02:58]} 2. c4 {[%clk 0:03:00]}  c6 {[%clk 0:02:58]} 3. Nf3 {[%clk 0:03:00]}  Nf6 {[%clk 0:02:57]} 4. Nc3 {[%clk 0:03:00]}  dxc4 {[%clk 0:02:41]} 5. a4 {[%clk 0:03:00]}  e6 {[%clk 0:02:35]} 6. e3 {[%clk 0:02:58]}  c5 {[%clk 0:02:35]} 7. Bxc4 {[%clk 0:02:58]}  cxd4 {[%clk 0:02:30]} 8. exd4 {[%clk 0:02:53]}  Nc6 {[%clk 0:02:27]} 9. O-O {[%clk 0:02:52]}  Be7 {[%clk 0:02:27]} 10. Bg5 {[%clk 0:02:49]}  O-O {[%clk 0:02:24]} 11. Qd2 {[%clk 0:02:44]}  h6 {[%clk 0:02:20]} 12. Bh4 {[%clk 0:02:37]}  b6 {[%clk 0:02:11]} 13. Rad1 {[%clk 0:02:32]}  Bb7 {[%clk 0:02:07]} 14. Qf4 {[%clk 0:02:26]}  Nb4 {[%clk 0:01:56]} 15. Ne5 {[%clk 0:02:18]}  Nfd5 {[%clk 0:01:47]} 16. Nxd5 {[%clk 0:02:13]}  Nxd5 {[%clk 0:01:44]} 17. Bxd5 {[%clk 0:02:13]}  Qxd5 {[%clk 0:01:35]} 18. Nf3 {[%clk 0:02:11]}  g5 {[%clk 0:01:25]} 19. Qg3 {[%clk 0:02:10]}  Kh7 {[%clk 0:01:20]} 20. Rfe1 {[%clk 0:02:07]}  gxh4 {[%clk 0:01:09]} 21. Qf4 {[%clk 0:02:04]}  Rg8 {[%clk 0:01:02]} 22. Re5 {[%clk 0:02:00]}  Qxf3 {[%clk 0:00:55]} 0-1


[Site "https://www.chess.com"]

[Event "Titled Tuesday Blitz August 24 2021"]
[White "Koziol, Kamil"]
[Black "Petesch, Gabriel"]
[WhiteFideId "1161555"]
[BlackFideId "2032465"]
[WhiteElo "2025"]
[BlackElo "2374"]
[Result "1-0"]
[Round "09"]
[TimeControl "180+1"]
[Date "2021.08.24"]
[WhiteClock "0:00:41"]
[BlackClock "0:00:03"]

1. e4 {[%clk 0:03:00]}  b5 {[%clk 0:02:50]} 2. Bxb5 {[%clk 0:02:55]}  Bb7 {[%clk 0:02:47]} 3. d3 {[%clk 0:02:55]}  e6 {[%clk 0:02:37]} 4. Nc3 {[%clk 0:02:49]}  Nf6 {[%clk 0:02:33]} 5. Bg5 {[%clk 0:02:43]}  Be7 {[%clk 0:02:32]} 6. Nge2 {[%clk 0:02:40]}  O-O {[%clk 0:02:30]} 7. Qd2 {[%clk 0:02:37]}  d5 {[%clk 0:01:51]} 8. f3 {[%clk 0:01:54]}  h6 {[%clk 0:01:31]} 9. Bf4 {[%clk 0:01:38]}  Nh5 {[%clk 0:00:50]} 10. O-O {[%clk 0:01:23]}  c6 {[%clk 0:00:47]} 11. Ba4 {[%clk 0:01:22]}  Nxf4 {[%clk 0:00:45]} 12. Qxf4 {[%clk 0:01:18]}  Bg5 {[%clk 0:00:43]} 13. Qg3 {[%clk 0:01:18]}  Bh4 {[%clk 0:00:30]} 14. Qh3 {[%clk 0:01:16]}  Nd7 {[%clk 0:00:28]} 15. f4 {[%clk 0:01:13]}  Nc5 {[%clk 0:00:19]} 16. Bb3 {[%clk 0:01:05]}  Bf6 {[%clk 0:00:18]} 17. e5 {[%clk 0:01:04]}  Be7 {[%clk 0:00:18]} 18. Ng3 {[%clk 0:01:03]}  a5 {[%clk 0:00:16]} 19. a3 {[%clk 0:01:00]}  Qb6 {[%clk 0:00:11]} 20. Kh1 {[%clk 0:00:53]}  Nxb3 {[%clk 0:00:06]} 21. cxb3 {[%clk 0:00:52]}  Qxb3 {[%clk 0:00:07]} 22. f5 {[%clk 0:00:52]}  exf5 {[%clk 0:00:03]} 23. Nxf5 {[%clk 0:00:52]}  Rfe8 {[%clk 0:00:04]} 24. Nxh6+ {[%clk 0:00:41]}  gxh6 {[%clk 0:00:03]} 25. Qxh6 {[%clk 0:00:42]}  Bf8 {[%clk 0:00:02]} 26. Qf6 {[%clk 0:00:43]}  Re7 {[%clk 0:00:02]} 27. Rf3 {[%clk 0:00:42]}  Re6 {[%clk 0:00:02]} 28. Rg3+ {[%clk 0:00:41]}  Kh7 {[%clk 0:00:03]} 29. Qxf7+ {[%clk 0:00:41]}  Kh8 {[%clk 0:00:03]} 30. Rg8# {[%clk 0:00:41]} 1-0


[Site "https://www.chess.com"]

[Event "Titled Tuesday Blitz August 24 2021"]
[White "Le, Tuan Minh"]
[Black "Andreikin, Dmitry"]
[WhiteFideId "12401153"]
[BlackFideId "4158814"]
[WhiteElo "2450"]
[BlackElo "2782"]
[Result "1/2-1/2"]
[Round "09"]
[TimeControl "180+1"]
[Date "2021.08.24"]
[WhiteClock "0:00:06"]
[BlackClock "0:00:03"]

1. d4 {[%clk 0:03:00]}  Nf6 {[%clk 0:02:59]} 2. Nf3 {[%clk 0:03:01]}  d5 {[%clk 0:02:54]} 3. Bf4 {[%clk 0:03:01]}  c5 {[%clk 0:02:55]} 4. c3 {[%clk 0:03:01]}  Qb6 {[%clk 0:02:49]} 5. Qc2 {[%clk 0:03:01]}  cxd4 {[%clk 0:02:39]} 6. cxd4 {[%clk 0:03:02]}  Nc6 {[%clk 0:02:38]} 7. e3 {[%clk 0:03:02]}  Bf5 {[%clk 0:02:27]} 8. Qb3 {[%clk 0:01:30]}  e6 {[%clk 0:02:27]} 9. Nc3 {[%clk 0:01:29]}  Bb4 {[%clk 0:02:18]} 10. Be2 {[%clk 0:01:21]}  Ne4 {[%clk 0:02:14]} 11. Rc1 {[%clk 0:01:22]}  O-O {[%clk 0:02:09]} 12. O-O {[%clk 0:01:19]}  Na5 {[%clk 0:02:00]} 13. Qa4 {[%clk 0:01:17]}  Bxc3 {[%clk 0:01:59]} 14. bxc3 {[%clk 0:01:16]}  Rfc8 {[%clk 0:02:00]} 15. Qa3 {[%clk 0:01:02]}  f6 {[%clk 0:01:46]} 16. Nh4 {[%clk 0:00:56]}  g5 {[%clk 0:01:16]} 17. Nxf5 {[%clk 0:00:56]}  exf5 {[%clk 0:01:17]} 18. Bg3 {[%clk 0:00:56]}  Nc4 {[%clk 0:01:16]} 19. Qe7 {[%clk 0:00:41]}  Nxg3 {[%clk 0:01:14]} 20. hxg3 {[%clk 0:00:40]}  Rc7 {[%clk 0:01:12]} 21. Qb4 {[%clk 0:00:40]}  Kf7 {[%clk 0:00:44]} 22. Qa4 {[%clk 0:00:29]}  Qc6 {[%clk 0:00:36]} 23. Qc2 {[%clk 0:00:29]}  Nd6 {[%clk 0:00:35]} 24. g4 {[%clk 0:00:25]}  Qd7 {[%clk 0:00:32]} 25. gxf5 {[%clk 0:00:25]}  Qxf5 {[%clk 0:00:33]} 26. Bd3 {[%clk 0:00:25]}  Qe6 {[%clk 0:00:31]} 27. Qe2 {[%clk 0:00:22]}  f5 {[%clk 0:00:29]} 28. Qh5+ {[%clk 0:00:19]}  Qg6 {[%clk 0:00:29]} 29. Qh2 {[%clk 0:00:20]}  Rac8 {[%clk 0:00:25]} 30. Be2 {[%clk 0:00:19]}  g4 {[%clk 0:00:21]} 31. Qf4 {[%clk 0:00:12]}  Ne4 {[%clk 0:00:16]} 32. Bd3 {[%clk 0:00:09]}  Qf6 {[%clk 0:00:08]} 33. c4 {[%clk 0:00:07]}  dxc4 {[%clk 0:00:07]} 34. Bxe4 {[%clk 0:00:07]}  fxe4 {[%clk 0:00:08]} 35. Qxg4 {[%clk 0:00:05]}  Qg6 {[%clk 0:00:08]} 36. Qf4+ {[%clk 0:00:05]}  Kg8 {[%clk 0:00:07]} 37. d5 {[%clk 0:00:03]}  Rg7 {[%clk 0:00:03]} 38. g3 {[%clk 0:00:02]}  Rf8 {[%clk 0:00:04]} 39. Qh4 {[%clk 0:00:02]}  b5 {[%clk 0:00:02]} 40. Rcd1 {[%clk 0:00:02]}  Qg4 {[%clk 0:00:02]} 41. Qh1 {[%clk 0:00:02]}  Qf3 {[%clk 0:00:02]} 42. Qh4 {[%clk 0:00:02]}  Rg4 {[%clk 0:00:02]} 43. Qh2 {[%clk 0:00:03]}  Rg5 {[%clk 0:00:02]} 44. d6 {[%clk 0:00:03]}  Rh5 {[%clk 0:00:03]} 45. Qg2 {[%clk 0:00:04]}  Rd8 {[%clk 0:00:03]} 46. Rd4 {[%clk 0:00:04]}  Rh6 {[%clk 0:00:03]} 47. Rfd1 {[%clk 0:00:05]}  Re6 {[%clk 0:00:03]} 48. d7 {[%clk 0:00:05]}  Qxg2+ {[%clk 0:00:02]} 49. Kxg2 {[%clk 0:00:05]}  Re7 {[%clk 0:00:03]} 50. a4 {[%clk 0:00:06]}  a6 {[%clk 0:00:03]} 51. axb5 {[%clk 0:00:06]}  axb5 {[%clk 0:00:04]} 52. f3 {[%clk 0:00:06]}  exf3+ {[%clk 0:00:04]} 53. Kxf3 {[%clk 0:00:07]}  Kf7 {[%clk 0:00:04]} 54. Rf4+ {[%clk 0:00:07]}  Ke6 {[%clk 0:00:04]} 55. Re4+ {[%clk 0:00:08]}  Kf7 {[%clk 0:00:04]} 56. Rf4+ {[%clk 0:00:08]}  Kg7 {[%clk 0:00:04]} 57. Rfd4 {[%clk 0:00:08]}  Kf7 {[%clk 0:00:04]} 58. e4 {[%clk 0:00:09]}  c3 {[%clk 0:00:04]} 59. Ke3 {[%clk 0:00:08]}  c2 {[%clk 0:00:04]} 60. Rf1+ {[%clk 0:00:08]}  Ke6 {[%clk 0:00:04]} 61. Rc1 {[%clk 0:00:07]}  Rexd7 {[%clk 0:00:04]} 62. Rxd7 {[%clk 0:00:07]}  Rxd7 {[%clk 0:00:05]} 63. Rxc2 {[%clk 0:00:08]}  Rb7 {[%clk 0:00:05]} 64. Rc6+ {[%clk 0:00:07]}  Kf7 {[%clk 0:00:05]} 65. Kd3 {[%clk 0:00:06]}  b4 {[%clk 0:00:05]} 66. Kc2 {[%clk 0:00:06]}  b3+ {[%clk 0:00:05]} 67. Kb2 {[%clk 0:00:06]}  Rb4 {[%clk 0:00:06]} 68. Rh6 {[%clk 0:00:07]}  Kg7 {[%clk 0:00:06]} 69. Rh4 {[%clk 0:00:07]}  Kg6 {[%clk 0:00:06]} 70. Rf4 {[%clk 0:00:07]}  h5 {[%clk 0:00:06]} 71. Rh4 {[%clk 0:00:06]}  Kg5 {[%clk 0:00:05]} 72. Rf4 {[%clk 0:00:06]}  Kg6 {[%clk 0:00:05]} 73. Rh4 {[%clk 0:00:07]}  Rb5 {[%clk 0:00:06]} 74. Rf4 {[%clk 0:00:06]}  Rb4 {[%clk 0:00:03]} 1/2-1/2


[Site "https://www.chess.com"]